Cogmind - Beta 13 *** ADVENTURER MODE // 2024.03.19 @ 22:20:20 Player: TRUE.MIND Result: Destroyed by G-47 Trooper with Particle Gun Performance ------------- Evolutions (3) 1500 Regions Visited (6) 1200 Robots Destroyed (89) 445 Value Destroyed (3356) 3356 Prototype IDs (0) 0 Alien Tech Used (0) 0 Bonus (0) 0 TOTAL SCORE: 6501 Bonus ------- None Cogmind --------- Core Integrity 0/700 Matter 247/300 Energy 286/290 System Corruption 16% Temperature Cool (16) Movement Treading (153) Location -7/Lower Caves Parts ------- > --- POWER (2) -------- Improved Deuterium Engine > --- PROPULSION (3) --- Armored Treads Advanced Treads Advanced Treads > --- UTILITY (6) ------ Medium Storage Unit Large Storage Unit Improved Signal Interpreter Improved Light Armor Plating > --- WEAPON (2) ------- Beam Cannon > --- INVENTORY (15) --- Light Deuterium Engine Light Nuclear Core Light Nuclear Core Peak State ------------ > --- POWER ------------ Light Deuterium Engine Improved Deuterium Engine > --- PROPULSION ------- Armored Treads Armored Treads Armored Treads > --- UTILITY ---------- Improved Heat Sink Medium Storage Unit Large Storage Unit Improved Signal Interpreter Improved Light Armor Plating > --- WEAPON ----------- Heavy Flail > --- INVENTORY -------- Light Nuclear Core Beam Cannon Greatsword [Rating: 31] Favorites ----------- Power Light Ion Engine Engine Light Ion Engine Propulsion Advanced Treads Treads Advanced Treads Leg Aluminum Leg Wheel Wheel Flight Unit VTOL Module Utility Medium Storage Unit Device Improved Heat Sink Storage Medium Storage Unit Processor Improved Signal Interpreter Protection Insulated Plating Weapon Beam Cannon Energy Gun Small Laser Energy Cannon Beam Cannon Ballistic Cannon Battle Cannon Launcher Mini Grenade Launcher Impact Weapon Heavy Flail Slashing Weapon Katana Build | -11 -10 -10 -9 -8 -7 -7 ------- Run | Yrd Mat Min Mat Mat Fac Low Slots Evolved 6 | . . . 2 2 2 . Power 1 | . . . . . 1 . Propulsion 1 | . . . . 1 . . Utility 4 | . . . 2 1 1 . Weapon . | . . . . . . . Parts Attached 85 | 5 1 4 20 39 14 2 Power 13 | 1 . 2 3 4 3 . Engine 13 | 1 . 2 3 4 3 . Core . | . . . . . . . Reactor . | . . . . . . . Propulsion 30 | 2 . . 8 14 6 . Treads 19 | . . . 5 8 6 . Leg 6 | . . . . 6 . . Wheel 4 | 2 . . 2 . . . Hover . | . . . . . . . Flight 1 | . . . 1 . . . Utility 22 | 1 1 1 5 11 3 . Device 9 | . . . 3 4 2 . Storage 5 | 1 1 . . 3 . . Processor 2 | . . 1 . 1 . . Hackware . | . . . . . . . Protection 6 | . . . 2 3 1 . Artifact . | . . . . . . . Weapon 20 | 1 . 1 4 10 2 2 Energy Gun 1 | 1 . . . . . . Energy Cannon 8 | . . . 4 3 . 1 Ballistic Gun . | . . . . . . . Ballistic Cannon 1 | . . 1 . . . . Launcher 1 | . . . . 1 . . Special Weapon . | . . . . . . . Impact Weapon 6 | . . . . 5 1 . Slashing Weapon 3 | . . . . 1 1 1 Piercing Weapon . | . . . . . . . Special Melee Weapon . | . . . . . . . Unidentified Prototypes . | . . . . . . . Parts Lost 23 | . . 3 1 9 6 4 Power 5 | . . 1 . 2 1 1 Propulsion 8 | . . 2 . 3 3 . Utility 6 | . . . 1 3 1 1 Weapon 4 | . . . . 1 1 2 Highest Loss Streak 4 | . . 2 1 2 3 4 To Critical Strikes 1 | . . . . . . 1 Average Slot Usage (%) 77 | . 71 59 91 90 52 83 Engine 8 | . 14 11 10 8 2 14 Treads 11 | . . . 13 8 12 23 Leg 4 | . . . . 13 . . Wheel 2 | . 28 12 3 . . . Device 9 | . . . 15 10 5 6 Storage 14 | . 14 14 11 15 15 15 Processor 6 | . . 1 5 8 7 7 Protection 5 | . . . 9 8 . 7 Energy Gun 1 | . 14 14 . . . . Energy Cannon 8 | . . . 20 10 . . Impact Weapon 2 | . . . . 2 6 6 Naked Turns . | . . . . . . . Heaviest Build 52 | 9 14 17 26 48 52 50 Greatest Support 66 | 20 20 20 40 66 66 64 Greatest Overweight (x) 11 | 2 . 5 8 4 11 . Average Overweight (x) . | . . 1 . . 2 . Largest Inventory Capacity 25 | 8 10 10 10 25 15 15 Average Capacity 12 | 7 9 10 10 13 15 15 Most Carried 6 | 2 2 2 3 6 6 6 Average Carried 2 | . . 1 . 3 3 5 Final Capacity 15 | 8 10 10 10 15 15 15 Final Carried 5 | . 1 . 1 1 5 3 Class Distribution -------------------- 75% | Mutant 24% | Scavenger-Mutant Dominant Class ---------------- Mutant | -10/Materials Mutant | -10/Mines Mutant | -9/Materials Scavenger-Mutant | -8/Materials Mutant | -7/Factory Mutant | -7/Lower Caves Resources | -11 -10 -10 -9 -8 -7 -7 ----------- Run | Yrd Mat Min Mat Mat Fac Low Matter Collected 1195 | 243 . 118 209 353 242 30 Remotely . | . . . . . . . Salvage Created 3722 | . . 74 1084 1344 1125 95 Parts 160 | . . 2 77 53 26 2 Haulers Intercepted 6 | . . . 2 2 2 . Recyclers Shooed 1 | . . 1 . . . . Parts Field Recycled . | . . . . . . . Retrieved Matter . | . . . . . . . Parts Self-Destructed . | . . . . . . . Prevented . | . . . . . . . Kills | -11 -10 -10 -9 -8 -7 -7 ------- Run | Yrd Mat Min Mat Mat Fac Low Combat Hostiles Destroyed 76 | . . 5 23 28 18 2 Melee 16 | . . . . 4 11 1 Guns 2 | . . 2 . . . . Cannons 46 | . . 3 23 19 . 1 AOE 4 | . . . . 3 1 . Classes Destroyed 13 | . . 3 4 2 4 . Builder 2 | . . . . . 2 . Hauler 6 | . . . 2 2 2 . Recycler 3 | . . . . . 3 . Operator 1 | . . . . 1 . . Watcher 4 | . . . 3 1 . . Swarmer 10 | . . . 7 3 . . Grunt 36 | . . 1 7 15 13 . Brawler 3 | . . . . . 2 1 Duelist 1 | . . . . 1 . . Sentry 18 | . . . 9 9 . . Demolisher 1 | . . 1 . . . . Programmer 4 | . . . . . 3 1 Assembled 3 | . . 3 . . . . Best Kill Streak 7 | . . 2 4 4 7 1 Combat Bots Only 7 | . . 2 4 4 7 1 Max Kills in Single Turn 2 | . . 1 1 1 2 1 Gunslinging . | . . . . . . . Exploded 1 | . . . . 1 1 . Melee 1 | . . . . 1 1 1 Uniques/NPCs Destroyed . | . . . . . . . Combat | -11 -10 -10 -9 -8 -7 -7 -------- Run | Yrd Mat Min Mat Mat Fac Low Hostile Shots Fired 725 | . . 33 107 224 314 47 Missed 216 | . . 10 26 68 100 12 Damage Taken 5910 | . . 395 806 1863 2383 463 Core 1192 | . . 121 133 228 649 61 Absorbed by Shields . | . . . . . . . Ignored by Resistances 1743 | . . 111 231 570 697 134 Regen/Repaired (Parts) 135 | . . . . 135 . . Core Remaining (%) 68 | 100 . 51 66 58 . . Volleys Fired 188 | . . 31 63 93 . 1 Largest 2 | . . 2 2 2 . 1 Hottest 120 | . . 79 120 120 . 60 Shots Fired 344 | . . 46 126 170 1 1 Gun 29 | . . 29 . . . . Cannon 307 | . . 17 126 163 . 1 Launcher 8 | . . . . 7 1 . Special . | . . . . . . . Kinetic 17 | . . 17 . . . . Thermal 319 | . . 29 126 163 . 1 Explosive 8 | . . . . 7 1 . Electromagnetic . | . . . . . . . Robot Hit Streak 22 | . . 10 22 19 4 5 Robot Miss Streak 4 | . . 2 2 4 . . Penetration Max . | . . . . . . . Secondary Targets . | . . . . . . . Shots Hit Robots 356 | . . 30 94 157 64 11 Core Hits 126 | . . 12 38 58 15 3 Critical Kills 3 | . . . . 1 1 1 Critical Parts Destroyed 10 | . . . . 1 9 . Critical Strikes 21 | . . . . 6 14 1 Meltdown 1 | . . . . 1 . . Smash 12 | . . . . 1 10 1 Sever 8 | . . . . 4 4 . Melee Attacks 111 | . . . . 30 70 11 Impact 83 | . . . . 9 63 11 Slashing 28 | . . . . 21 7 . Piercing . | . . . . . . . Sneak Attacks 9 | . . . . 2 7 . Combat Hostiles . | . . . . . . . Follow-up Attacks . | . . . . . . . Damage Inflicted 10139 | . . 411 1683 3983 3615 447 Guns 220 | . . 220 . . . . Cannons 4137 | . . 191 1669 2259 . 18 Explosions 1027 | . . . . 634 393 . Melee 4741 | . . . . 1090 3222 429 Ramming 14 | . . . 14 . . . Kinetic 191 | . . 191 . . . . Thermal 4166 | . . 220 1669 2259 . 18 Explosive 1027 | . . . . 634 393 . Electromagnetic . | . . . . . . . Impact 3718 | . . . . 420 2869 429 Slashing 1023 | . . . . 670 353 . Piercing . | . . . . . . . Highest Corruption 16 | . . . . . 11 16 Average Corruption 9 | . . . . . 8 11 Corruption Purged . | . . . . . . . Corruption Blocked . | . . . . . . . Effects 82 | . . . . . 56 26 Message Errors 24 | . . . . . 18 6 Matter Fused 16 | . . . . . 10 6 Heat Flow Errors 5 | . . . . . 4 1 Energy Discharges 10 | . . . . . 6 4 Data Loss (minor) 16 | . . . . . 9 7 Data Loss (major) 5 | . . . . . 3 2 Misfires 1 | . . . . . 1 . Alerts 2 | . . . . . 2 . Misdirections 3 | . . . . . 3 . Overload Shots . | . . . . . . . Overflow Damage 1379 | . . . . 215 1075 89 Projectiles 1 | . . . . 1 . . Explosions 90 | . . . . 29 61 . Melee 1288 | . . . . 185 1014 89 Knockbacks 13 | . . 3 . 1 9 . Impact 10 | . . . . 1 9 . Kinetic 3 | . . 3 . . . . Secondary . | . . . . . . . Self-Inflicted Damage 156 | . . . 6 28 122 . Shots 4 | . . . . 1 3 . Rammed 2 | . . . 2 . . . Targets Rammed 2 | . . . 2 . . . Kicked . | . . . . . . . Crushed . | . . . . . . . Highest Temperature 297 | . . 72 297 297 232 161 Average Temperature 63 | . . 26 67 67 94 56 Received Heat Transfer 2442 | . . 90 345 1035 774 198 Siege Activations . | . . . . . . . Robots Corrupted . | . . . . . . . Combat Hostiles . | . . . . . . . Parts Fried 11 | . . . . 1 9 1 Impact Corruptions 45 | . . . . 3 37 5 Robots Melted 1 | . . . . 1 . . Combat Hostiles 1 | . . . . 1 . . Parts Melted 25 | . . . 11 12 2 . Heat Transferred 8825 | . . 500 3515 4773 . 37 Parts Sabotaged . | . . . . . . . Parts Stolen . | . . . . . . . Parts Stripped . | . . . . . . . Power Chain Reactions . | . . . . . . . Alert | -11 -10 -10 -9 -8 -7 -7 ------- Run | Yrd Mat Min Mat Mat Fac Low Peak Influence 398 | . 45 52 398 227 294 . Initial 70 | . . 14 . 70 . . Average 96 | . 17 33 136 99 82 . Maximum Alert Level 1 | . . . 1 1 1 . Low Security (%) 82 | 100 100 100 69 88 79 . Level 1 17 | . . . 30 11 20 . Level 2 . | . . . . . . . Level 3 . | . . . . . . . Level 4 . | . . . . . . . Level 5 . | . . . . . . . High Security . | . . . . . . . Max Security . | . . . . . . . Squads Dispatched 10 | . . . 2 2 6 . Investigation 3 | . . . 1 2 . . Extermination 2 | . . . . . 2 . Reinforcement 5 | . . . 1 . 4 . Assault . | . . . . . . . Garrison . | . . . . . . . Intercept . | . . . . . . . Searches Triggered . | . . . . . . . Construction Impeded 1 | . . . . . 1 . Haulers Reinforced 1 | . . . . . 1 . Active Scanning Responses . | . . . . . . . Cargo Convoy Interrupts . | . . . . . . . Stealth | -11 -10 -10 -9 -8 -7 -7 --------- Run | Yrd Mat Min Mat Mat Fac Low Distress Signals 5 | . . . 2 3 . . Communications Jammed . | . . . . . . . Distress Signals . | . . . . . . . Times Spotted 118 | . 4 7 30 46 26 5 Peak Tracking Total 6 | . 3 5 6 5 5 4 Tactical Retreats 7 | . 1 . 1 1 4 . Traps | -11 -10 -10 -9 -8 -7 -7 ------- Run | Yrd Mat Min Mat Mat Fac Low Traps Triggered 4 | . . . 1 2 1 . Indirectly . | . . . . . . . Trap Hack Attempts . | . . . . . . . Triggered . | . . . . . . . Disarmed . | . . . . . . . Reprogrammed . | . . . . . . . Reused . | . . . . . . . Traps Extracted . | . . . . . . . Installed . | . . . . . . . Triggered . | . . . . . . . Machines | -11 -10 -10 -9 -8 -7 -7 ---------- Run | Yrd Mat Min Mat Mat Fac Low Machines Disabled 21 | . . . 2 1 18 . Max in Single Turn 15 | . . . 1 1 15 . Machines Repaired . | . . . . . . . Machines Dismantled . | . . . . . . . Machines Sabotaged . | . . . . . . . Overloaded Fab Kills . | . . . . . . . Hacking | -11 -10 -10 -9 -8 -7 -7 --------- Run | Yrd Mat Min Mat Mat Fac Low Machines Accessed 10 | . . . 3 6 1 . Terminals 6 | . . . 2 3 1 . Fabricators . | . . . . . . . Repair Stations 2 | . . . . 2 . . Recycling Units . | . . . . . . . Scanalyzers 2 | . . . 1 1 . . Garrison Access . | . . . . . . . Total Hacks 22 | . . . 5 15 2 . Successful 17 | . . . 5 11 1 . Failed 5 | . . . . 4 1 . Catastrophic . | . . . . . . . Database Lockouts . | . . . . . . . Manual 4 | . . . 4 . . . Terminals 8 | . . . 2 4 2 . Fabricators . | . . . . . . . Repair Stations 9 | . . . . 9 . . Recycling Units . | . . . . . . . Scanalyzers 5 | . . . 3 2 . . Garrison Access . | . . . . . . . Terminal Hacks 6 | . . . 2 3 1 . Record 1 | . . . . 1 . . Open DSF 1 | . . . . . 1 . Branch Access Points 1 | . . . . 1 . . Zone Layout 3 | . . . 2 1 . . Fabricator Hacks . | . . . . . . . Repair Station Hacks 6 | . . . . 6 . . Scan Component 3 | . . . . 3 . . Repair 2 | . . . . 2 . . Refit 1 | . . . . 1 . . Recycling Unit Hacks . | . . . . . . . Scanalyzer 5 | . . . 3 2 . . Insert Component 2 | . . . 1 1 . . Analyze 3 | . . . 2 1 . . Garrison Access Hacks . | . . . . . . . Unauthorized Hacks . | . . . . . . . Terminals . | . . . . . . . Fabricators . | . . . . . . . Repair Stations . | . . . . . . . Recycling Units . | . . . . . . . Scanalyzers . | . . . . . . . Garrison Access . | . . . . . . . Data Cores Recovered 1 | . . . . 1 . . Used . | . . . . . . . Hacking Detections 6 | . . . 3 3 . . Full Trace Events 1 | . . . . 1 . . Feedback Events . | . . . . . . . Feedback Blocked . | . . . . . . . Robot Schematics Acquired . | . . . . . . . Robots Built . | . . . . . . . Authchips . | . . . . . . . Time . | . . . . . . . Total Robot Build Rating . | . . . . . . . Part Schematics Acquired 1 | . . . . 1 . . Parts Built . | . . . . . . . Authchips . | . . . . . . . Time . | . . . . . . . Total Part Build Rating . | . . . . . . . Parts Repaired 2 | . . . . 2 . . Time 79 | . . . . 79 . . Parts Recycled . | . . . . . . . Recycled Matter . | . . . . . . . Retrieved Matter . | . . . . . . . Retrieved Components . | . . . . . . . Parts Scanalyzed 1 | . . . 1 . . . Part Schematics Acquired 1 | . . . . 1 . . Parts Damaged . | . . . . . . . Bothacking | -11 -10 -10 -9 -8 -7 -7 ------------ Run | Yrd Mat Min Mat Mat Fac Low Used RIF Installer . | . . . . . . . Robots Hacked . | . . . . . . . Non-combat . | . . . . . . . Combat . | . . . . . . . Robot Hacks Applied . | . . . . . . . Relay Couplers Released . | . . . . . . . Fabnet Peak Effective % . | . . . . . . . Robots Rewired . | . . . . . . . Allies Hacked . | . . . . . . . Hacks Repelled . | . . . . . . . Allies | -11 -10 -10 -9 -8 -7 -7 -------- Run | Yrd Mat Min Mat Mat Fac Low Total Allies . | . . . . . . . Largest Group . | . . . . . . . Highest-Rated Group . | . . . . . . . Highest-Rated Ally . | . . . . . . . Total Orders . | . . . . . . . Ally Attacks . | . . . . . . . Total Damage . | . . . . . . . Kills . | . . . . . . . Allies Corrupted . | . . . . . . . Allies Melted . | . . . . . . . Intel | -11 -10 -10 -9 -8 -7 -7 ------- Run | Yrd Mat Min Mat Mat Fac Low Robot Analysis Total . | . . . . . . . Derelict Logs Recovered 1 | . . 1 . . . . Drone Launches . | . . . . . . . Drone Recoveries . | . . . . . . . Exploration | -11 -10 -10 -9 -8 -7 -7 ------------- Run | Yrd Mat Min Mat Mat Fac Low Turns Passed 6979 | 40 201 417 1635 2129 1771 786 Spaces Moved 3380 | 35 248 244 791 953 616 493 Core 277 | 14 . 61 76 . 126 . Treads 1935 | . . . 520 432 490 493 Legs 521 | . . . . 521 . . Wheels 635 | 21 248 183 183 . . . Hover . | . . . . . . . Flight 12 | . . . 12 . . . Fastest Speed 50 | 50 80 80 100 120 145 153 Average Speed 175 | 85 80 135 176 175 253 153 Slowest Speed 600 | 150 80 300 515 400 600 153 Overloaded Moves . | . . . . . . . Propulsion Burnouts . | . . . . . . . Robots Hopped . | . . . . . . . Cave-ins Triggered . | . . . . . . . Exploration Rate (%) 43 | 3 35 56 62 80 13 56 Regions Visited 6 Branch Regions 2 Pre-discovered Areas 2 | . . 2 . . . . Known Exits Taken 1 | . . . . 1 . . Unknown Exits Taken 5 | 1 1 1 1 . 1 . Scrap Searched 1 | . . 1 . . . . Spaces Dug . | . . . . . . . Terrain Destroyed 58 | . . 3 . 15 40 . Melee . | . . . . . . . Projectile 3 | . . 3 . . . . AOE 55 | . . . . 15 40 . Terrain Rammed . | . . . . . . . Walls Destroyed . | . . . . . . . Machines Disabled . | . . . . . . . Actions | -11 -10 -10 -9 -8 -7 -7 --------- Run | Yrd Mat Min Mat Mat Fac Low Total 3925 | 44 250 287 913 1203 720 508 Wait 31 | . . . 2 29 . . Move 3374 | 34 247 243 790 952 615 493 Hop . | . . . . . . . Pick Up 78 | 5 1 5 21 31 14 1 Fast Attach . | . . . . . . . Attach 79 | 5 1 4 19 34 14 2 Detach 15 | . 1 . 2 9 3 . Swap 6 | . . . 1 5 . . Drop 41 | . . 4 13 20 4 . Fire 188 | . . 31 63 93 . 1 Melee 111 | . . . . 30 70 11 Ram 2 | . . . 2 . . . Kick . | . . . . . . . Crush . | . . . . . . . Escape Stasis . | . . . . . . . Rewire . | . . . . . . . Trap . | . . . . . . . Miscellaneous . | . . . . . . . Route ------- -11/Scrapyard -10/Materials -10/Mines -9/Materials (discovered 5 exits: *Mat x3 / [*Min x2]) -8/Materials (discovered 3 exits: *Fac x2 / *Sto) -7/Factory -7/Lower Caves History --------- Turn | Location | Event 11 | -11/Scrapyard | Discovered new exit (range 16) 41 | -11/Scrapyard | Entered Materials 238 | -10/Materials | Discovered new exit (range 6) 242 | -10/Materials | Entered Mines 262 | -10/Mines | Found a hidden stash of uninstalled traps 263 | -10/Mines | Assembled infested the area 285 | -10/Mines | A weapon hastily lodged in a ceiling crevice suddenly fell to the ground 309 | -10/Mines | Build established: Mutant 612 | -10/Mines | Discovered new exit (range 8) 615 | -10/Mines | Learned location of Storage (-8) 659 | -10/Mines | Entered Materials 659 | -9/Materials | Evolved 2 slots: Utility x2 971 | -9/Materials | Discovered new exit (range 13) 1249 | -9/Materials | Discovered new exit (range 3) 1598 | -9/Materials | Discovered new exit (range 16) 1816 | -9/Materials | Build established: Scavenger-Mutant 1842 | -9/Materials | Discovered new exit (range 17) 2182 | -9/Materials | Discovered new exit (range 15) 2294 | -9/Materials | Entered another Materials area 2294 | -8/Materials | Evolved 2 slots: Propulsion x1, Utility x1 2605 | -8/Materials | Repaired Beam Cannon 2909 | -8/Materials | Discovered new exit (range 9) 2944 | -8/Materials | Identified exit to Factory 3129 | -8/Materials | Repaired Broken Lgt. Deuterium Engine 3372 | -8/Materials | Discovered new exit (range 12) 3535 | -8/Materials | Identified exit to Storage 3903 | -8/Materials | Build established: Mutant 4338 | -8/Materials | Discovered exit to Factory (range 16) 4423 | -8/Materials | Entered Factory 4423 | -7/Factory | Evolved 2 slots: Power x1, Utility x1 4787 | -7/Factory | Lost 3 parts (2n1u) 5175 | -7/Factory | Core integrity fell below 50% 5292 | -7/Factory | System corruption reached 10% 5704 | -7/Factory | Core integrity fell below 20% 5770 | -7/Factory | Destroyed 7 combat bots 6163 | -7/Factory | Discovered new exit (range 11) 6194 | -7/Factory | Entered Lower Caves 6980 | -7/Lower Caves | Destroyed by G-47 Trooper with Particle Gun Last Messages --------------- data lost. 06906_ System corrupted: Matter fused (-10). 06925_ Acquired Unknown Power Core. 06948_ System corrupted: Component data lost. 06954_ Destroyed Imp. Heat Sink. 06954_ G-47 Trooper system corrupted by crushing effect. 06960_ Imp. Heat Sink destroyed. 06964_ System corrupted: Energy discharge (-69). 06964_ Critical hit (Burn: +37). 06971_ Lgt. Ion Engine destroyed. 06971_ System corrupted by crushing effect (+4). 06976_ Critical hit (Smash). 06976_ Hvy. Flail destroyed. 06978_ Greatsword destroyed. 06979_ System corrupted: Matter fused (-8). 06979_ B-48 Gladiator destroyed. [Achievement: First Step to Greatness] [Achievement: Back For More] [Achievement: 5k Club] Map ----- +----------------------------------------------------+ | ???????????????????????## ## | | ???????????????????????# ### | | ???????????????????????# ### | | ???????????????????????## ## ### | | ????????????????????????## ?## ### ### | | ?????????????????????????# ##### ### #?# | | ?????????????????????????# ## ### # #?# | | ????????????????????????## ##### #?# | | ????????????????????????# ?## | | ????????????????????????# ## | | ????????????????????????## ## #### ##### ? | | ?????????????????????????##??# #???# #???## ?? | | ????????????????????#####????# #????##????##??#?? | | ???????????????????## ##???# #????????????????? | | ??????????????????## $ ##### #????????????????? | | ??????????????????# ## #########????????? | | ??????????????????# # ???? | | ?????????????######! ## ???? | | ????????????## # ### ###########??????? | | ????????????# ##/ #????????????????? | | ????????????# #????????????????? | | ??# ?????## ########?????????? | | ??# ## ## g #?????????? | | ?# ## ###!g #?????????? | | ?# #?#%g #### #?????????? | | # ###@ ##???????????????? | | ?# ## ## #####????????????????? | | ?????## #### ##????????????????????? | | ??????# ## #??####?????????????????????? | | ??????# ##### #???????????????????????????? | | ?????# ????# #???????????????????????????? | | ?????# #????# ???????????????????????????? | | ?????## #?????# ??????????????????????????? | | ??????# ?????? ?????????????????????????? | | ?????? #?????? ?????????????????????????? | | ?????## #??????? ????????????????????????? | | ??????? ???????? ? ???????????????????????? | | ?????????????????? #???????????????????????????? | | ?????????????????????????????????????????????????? | | ?????????????????????????????????????????????????? | | ?????????????????????????????????????????????????? | | ?????????????????????????????????????????????????? | | ?????????????????????????????????????????????????? | | ?????????????????????????????????????????????????? | | ?????????????????????????????????????????????????? | | ?????????????????????????????????????????????????? | | ?????????????????????????????????????????????????? | | ?????????????????????????????????????????????????? | | ?????????????????????????????????????????????????? | | ?????????????????????????????????????????????????? | +----------------------------------------------------+ Best States ------------- Heat Dissipation 48 Energy Generation 25 Energy Capacity 330 Matter Stores 300 Matter Capacity 300 Sight Range 16 Robot Scan Range 14 Terrain Scan Density 10 Armor Coverage 300 Resistance: KI 20 Resistance: TH 30 Resistance: EX 20 Resistance: EM 35 Resistance: I 20 Resistance: S 20 Resistance: P 20 Evasion (%) 55 Targeting Accuracy 5 Recoil Reduction 3 Offensive Hacking 10 Item Schematics ----------------- Lgt. Deuterium Engine | -8/Materials | Scanalyzed Robot Schematics ------------------ None Fabricated ------------ Nothing Alien Tech Used ----------------- None Achievements -------------- 5k Club Back For More Batter Up First Step to Greatness I Survived The Infestation It Was An Accident, I Swear It's Just You Let's See Who's Tougher Made in Tau Ceti IV Maybe Next Time I'll Detach My Launcher Part-time Mechanic System Compromised Challenges ------------ None Game ------ Seed 1 Manual? 1 Play Time 01:42:47 Cumulative 81.8 hours Start 2024.03.19 @ 20:28:15 End 2024.03.19 @ 22:20:20 Sessions 1 Manual Loads 0 Difficulty Adventurer Special Mode None Game No. 84 Rogue 81 Adventurer 3 Explorer 0 Win Type - Total 0 Types 0/0/0/0/0/0/0/0/0 Lore% 5 Gallery% 24 Achievement% 8 Wizard Run 0 Options --------- Layout 1 ASCII 0 Keyboard 0 Movement Mouse Keybinds 0 Fullscreen 1 Font 24/Smallcaps Map View 50x35 Zoom Use 0% Tactical HUD 1 Map Filters NONE Filters NONE Steam 1 RUN: 0d8330cd-4c9f-4322-a4a6-cbcaf3e51a56